bitfinex-derivatives/quotes_ETHF0:USTF0_20250105
["timestamp","ask_amount","ask_price","bid_price","bid_amount"]
[1736105281798,0.473,3636.9,3636.8,1.24719941]
[1736105290102,3.23960751,3637.0,3636.8,0.99967941]
[1736105290305,3.23960751,3637.0,3636.9,0.24752]
[1736105290507,3.23960751,3637.0,3636.9,0.70972]
[1736105291304,0.4854,3637.1,3637.0,0.24751]
[1736105291508,0.4854,3637.1,3637.0,1.24718941]
[1736105296510,0.4854,3637.1,3637.0,2.31718941]
[1736105299311,0.4854,3637.1,3637.0,6.61891739]
[1736105301908,0.4854,3637.1,3637.0,2.31718941]
[1736105304522,0.24751,3637.0,3636.9,7.45758099]
[1736105304811,0.73291,3637.1,3636.9,8.77510099]
[1736105305811,0.41262682,3637.0,3636.9,2.31719941]
[1736105309119,0.41262682,3637.0,3636.7,4.31438357]
[1736105309120,1.41230623,3637.0,3636.7,3.58588357]
[1736105309318,5.20715882,3636.8,3636.5,5.97228515]
[1736105309520,1.24721941,3636.6,3636.5,3.78678515]
[1736105309716,1.24721941,3636.6,3636.5,2.37508515]
[1736105310023,2.24689882,3636.6,3636.5,1.59348515]
[1736105310212,7.24689882,3636.6,3636.5,1.59348515]
[1736105310916,0.24759,3636.0,3635.7,1.24727941]
[1736105312123,3.48973936,3636.0,3635.7,1.24727941]
[1736105312425,3.48973936,3636.0,3635.8,0.24759]
[1736105312925,3.48973936,3636.0,3635.7,1.24727941]
[1736105313829,3.24214936,3636.0,3635.7,0.99967941]
[1736105314022,3.24214936,3636.0,3635.8,0.24759]
[1736105314225,3.24214936,3636.0,3635.8,0.73299]
[1736105314924,7.69720877,3636.1,3635.8,0.73299]
[1736105316028,6.44994936,3636.1,3635.9,1.24726941]
[1736105317726,3.2078,3636.1,3635.9,1.24726941]
[1736105322026,3.2078,3636.1,3636.0,0.9526]
[1736105322331,3.2078,3636.1,3636.0,1.20018]
[1736105323828,0.99967941,3636.2,3636.0,1.20018]
[1736105324435,1.24724941,3636.2,3636.0,1.20018]
[1736105324729,3.2078,3636.3,3636.1,0.99967941]
[1736105324936,3.2078,3636.3,3636.2,0.24757]
[1736105326632,0.99967941,3636.4,3636.3,0.24756]
[1736105327131,0.99967941,3636.6,3636.5,0.24754]
[1736105327332,6.44994936,3636.7,3636.6,0.24754]
[1736105328933,3.2078,3636.7,3636.6,0.24754]
[1736105330834,4.24182877,3636.8,3636.7,0.24753]
[1736105331232,0.99967941,3636.8,3636.7,0.24753]
[1736105331427,1.24720941,3636.8,3636.7,0.24753]
[1736105332831,0.99967941,3636.8,3636.7,0.24753]
[1736105333940,1.24720941,3636.8,3636.7,0.24753]
[1736105335040,0.99967941,3636.8,3636.7,0.24753]
[1736105335228,1.24720941,3636.8,3636.7,0.24753]
[1736105336933,1.24720941,3636.8,3636.5,1.44237941]
[1736105337132,1.24720941,3636.8,3636.6,0.24754]
[1736105337538,3.40366289,3636.8,3636.6,0.24754]
[1736105338443,0.24754,3636.6,3636.5,0.4427]
[1736105338641,1.24721941,3636.6,3636.5,0.4427]
[1736105339736,1.24721941,3636.6,3636.4,0.4748]
[1736105339737,0.24755,3636.5,3636.4,0.4748]
[1736105339936,3.45535,3636.5,3636.4,0.4748]
[1736105341047,7.11021856,3636.5,3636.4,0.4748]
[1736105341743,6.86266856,3636.5,3636.2,0.4579]
[1736105342043,6.86266856,3636.5,3636.0,0.4775]
[1736105342044,0.24757,3636.1,3636.0,0.4775]
[1736105342238,4.45504941,3636.1,3636.0,0.4775]
[1736105343843,8.10442103,3636.1,3636.0,0.4775]
[1736105346855,4.86776861,3636.1,3636.0,0.4775]
[1736105350351,9.19063442,3636.1,3636.0,0.4775]
[1736105351256,8.19095501,3636.1,3636.0,0.4775]
[1736105352553,9.19063442,3636.1,3636.0,0.4775]
[1736105354661,5.98283442,3636.1,3636.0,0.4775]
[1736105354963,9.19063442,3636.1,3636.0,0.4775]
[1736105355858,4.86776861,3636.1,3636.0,0.4775]
[1736105356064,3.8680892,3636.1,3636.0,0.4775]
[1736105356764,3.45537,3636.1,3636.0,0.4775]
[1736105357466,2.72677,3636.1,3636.0,0.72508]
[1736105357955,2.97434,3636.1,3636.0,0.4775]
[1736105358156,3.3870592,3636.1,3636.0,0.4775]
[1736105360663,0.6602892,3636.1,3636.0,0.4775]
[1736105360861,3.8680892,3636.1,3636.0,0.4775]
[1736105366364,4.86776861,3636.1,3636.0,0.4775]
[1736105371271,4.62019861,3636.1,3635.7,0.4639]
[1736105371470,0.2476,3635.7,3635.6,0.4611]
[1736105371767,0.2476,3635.7,3635.1,6.46588925]
[1736105371768,0.24764,3635.2,3635.1,6.46588925]
[1736105371968,3.45544,3635.2,3635.1,6.46588925]
[1736105373268,0.24764,3635.1,3635.0,1.4123]
[1736105374065,0.24764,3635.1,3635.0,2.41197941]
[1736105375665,2.40813777,3635.1,3635.0,2.41197941]
[1736105383583,3.40781718,3635.1,3635.0,0.9288]
[1736105384282,4.48856944,3635.1,3635.0,0.9288]
[1736105386181,7.69636944,3635.1,3635.0,0.9288]
[1736105386578,8.10924028,3635.1,3635.0,0.9288]
[1736105387678,8.10924028,3635.1,3635.0,2.17612941]
[1736105387679,6.86192087,3635.1,3635.0,2.17612941]
[1736105387985,6.44905003,3635.1,3635.0,2.17612941]
[1736105389381,5.36807951,3635.1,3635.0,2.17612941]
[1736105389582,2.16027951,3635.1,3635.0,2.17612941]
[1736105389885,5.36807951,3635.1,3635.0,2.17612941]
[1736105392081,3.2078,3635.1,3635.0,2.17612941]
[1736105395289,2.16027951,3635.4,3635.0,1.92847941]
[1736105395488,2.16027951,3635.4,3635.3,1.24730941]
[1736105398890,2.16027951,3635.4,3635.3,0.99967941]
[1736105399091,2.40789951,3635.4,3635.2,0.69543]
[1736105399486,2.40789951,3635.4,3635.3,0.24763]
[1736105399788,0.24762,3635.4,3635.3,0.24763]
[1736105402887,0.24762,3635.4,3635.2,0.69543]
[1736105403083,3.24125003,3635.5,3635.2,0.69543]
[1736105403289,0.24762,3635.4,3635.2,0.69543]
[1736105403691,2.16048,3635.3,3635.2,0.69543]
[1736105407896,2.40811,3635.3,3635.2,0.69543]
[1736105408095,2.40811,3635.3,3635.2,0.4478]
[1736105408700,2.40811,3635.3,3635.2,0.69544]
[1736105408997,0.24763,3635.3,3635.2,0.69544]
[1736105410101,3.48888003,3635.3,3635.2,0.69544]
[1736105411498,3.90169989,3635.3,3635.2,0.69544]
[1736105414205,0.66044986,3635.3,3635.2,0.69544]
[1736105415105,4.57121637,3635.3,3635.2,0.69544]
[1736105417101,4.98403623,3635.3,3635.2,0.69544]
[1736105418201,0.66044986,3635.3,3635.2,0.69544]
[1736105419608,0.24763,3635.3,3635.2,0.69544]
[1736105420311,5.65121226,3635.4,3635.3,0.24763]
[1736105420608,5.65121226,3635.4,3635.3,1.24730941]
[1736105420809,0.24763,3635.4,3635.3,1.24730941]
[1736105422113,5.67789796,3635.4,3635.3,1.24730941]
[1736105423519,5.67789796,3635.4,3635.3,0.99967941]
[1736105425110,5.67789796,3635.4,3635.3,1.24730941]
[1736105426415,0.24763,3635.3,3635.2,0.4478]
[1736105426917,0.24763,3635.3,3635.2,1.69511941]
[1736105427516,5.67789796,3635.3,3635.2,1.69511941]
[1736105429223,5.67789796,3635.3,3635.2,0.4478]
[1736105429517,0.24764,3635.1,3635.0,0.4815]
[1736105429723,4.45511941,3635.1,3635.0,0.4815]
[1736105429920,4.45511941,3635.1,3634.8,6.46588925]
[1736105429921,0.24766,3634.9,3634.8,6.46588925]
[1736105430817,0.24766,3634.9,3634.8,7.46556866]
[1736105431118,0.66047621,3634.9,3634.8,0.99967941]
[1736105432217,0.24766,3634.8,3634.7,5.27641839]
[1736105432414,0.24766,3634.8,3634.7,4.32651839]
[1736105432717,0.24766,3634.8,3634.6,4.32651839]
[1736105432718,0.24767,3634.7,3634.6,4.32651839]
[1736105432919,4.94324941,3634.7,3634.6,4.32651839]
[1736105434426,0.24769,3634.5,3634.2,0.2477]
[1736105434626,0.2477,3634.3,3634.1,1.72298941]
[1736105434821,1.24736941,3634.4,3634.2,0.2477]
[1736105435420,0.99967941,3634.6,3634.3,0.99967941]
[1736105435622,14.28768737,3634.7,3634.5,1.24735941]
[1736105435925,9.85873167,3634.7,3634.6,0.9699]
[1736105436624,9.61106167,3634.7,3634.6,0.9699]
[1736105436828,8.53330636,3634.7,3634.6,1.21758]
[1736105437523,7.53362695,3634.7,3634.6,0.4881]
[1736105437721,7.78129695,3634.7,3634.6,0.4881]
[1736105438416,3.62070541,3634.7,3634.2,0.4818]
[1736105438624,0.99967941,3634.4,3634.3,0.2477]
[1736105439019,0.99967941,3634.4,3634.2,1.1845]
[1736105439527,1.24736941,3634.4,3634.2,1.1845]
[1736105440927,4.24280188,3634.4,3634.3,0.2477]
[1736105441324,3.24312247,3634.4,3634.3,0.2477]
[1736105441629,3.6560444,3634.4,3634.3,0.2477]
[1736105442027,3.6560444,3634.4,3634.3,1.24737941]
[1736105442829,2.16086108,3634.4,3634.3,1.24737941]
[1736105448138,2.16086108,3634.6,3634.5,0.24768]
[1736105448435,2.16086108,3634.6,3634.5,1.24735941]
[1736105448630,0.68306108,3634.6,3634.5,2.31635941]
[1736105448831,4.32582695,3635.0,3634.5,2.68787941]
[1736105449035,4.23788992,3635.0,3634.9,1.24733941]
[1736105449233,4.23788992,3635.1,3635.0,0.24765]
[1736105449424,4.23788992,3635.1,3635.0,1.24732941]
[1736105450932,3.2078,3635.6,3635.5,0.24762]
[1736105460942,3.2078,3635.6,3635.4,0.24762]
[1736105462253,3.45541,3635.6,3635.4,0.24762]
[1736105462754,3.2078,3635.6,3634.7,6.46588925]
[1736105463054,3.2078,3635.6,3635.1,0.24764]
[1736105463649,0.24764,3635.2,3635.0,0.5012]
[1736105463847,0.4748,3635.1,3635.0,0.74885]
[1736105466256,0.4748,3635.1,3635.0,0.5012]
[1736105466458,0.72244,3635.1,3635.0,0.24765]
[1736105466954,1.483,3635.1,3634.8,0.24766]
[1736105467356,0.24765,3635.0,3634.8,0.24766]
[1736105467555,0.24766,3634.9,3634.8,0.24766]
[1736105467757,0.24765,3635.0,3634.9,0.24766]
[1736105469151,0.24765,3635.0,3634.7,1.5891]
[1736105469152,1.483,3635.1,3634.7,0.5201]
[1736105469357,0.24766,3635.0,3634.8,0.24766]
[1736105469759,1.73065,3635.1,3634.9,0.24765]
[1736105469954,0.24765,3635.0,3634.9,0.24765]
[1736105470148,1.483,3635.1,3634.7,0.5201]
[1736105470346,0.24766,3634.8,3634.3,6.54070043]
[1736105470553,0.24766,3634.9,3634.7,0.24767]
[1736105470752,0.24767,3634.8,3634.6,0.24767]
[1736105470947,0.99970157,3634.8,3634.6,0.24768]
[1736105471155,0.99970157,3634.8,3634.7,0.24767]
[1736105471849,1.24736157,3634.8,3634.7,0.24767]
[1736105472557,0.99970157,3634.8,3634.7,0.24767]
[1736105473159,0.99970157,3635.0,3634.7,0.99970157]
[1736105473456,0.24766,3634.9,3634.7,1.24736157]
[1736105473844,1.24735157,3635.0,3634.8,0.24766]
[1736105475860,0.24766,3634.9,3634.8,0.24766]
[1736105476949,1.73064,3635.1,3635.0,0.24765]
[1736105477359,1.73064,3635.1,3634.9,0.24765]
[1736105478369,0.4748,3635.1,3635.0,0.24765]
[1736105478855,0.24765,3635.0,3634.9,0.24766]
[1736105479048,0.99970157,3635.0,3634.8,0.5085]
[1736105479253,1.23986,3634.9,3634.8,0.75616]
[1736105479562,0.9922,3634.9,3634.8,0.75616]
[1736105480160,0.72245,3635.1,3634.9,0.24766]
[1736105481461,0.4748,3635.1,3635.0,0.24765]
[1736105481861,0.72244,3635.1,3635.0,0.24765]
[1736105484158,0.72244,3635.1,3634.9,0.4894]
[1736105484364,0.4748,3635.1,3634.9,0.73705]
[1736105484564,0.99970157,3635.0,3634.8,0.75616]
[1736105484764,2.19675157,3635.0,3634.8,0.75616]
[1736105485359,2.19675157,3635.0,3634.8,0.24766]
[1736105485668,2.19675157,3635.0,3634.9,0.24766]
[1736105486759,0.4748,3635.1,3634.8,0.99970157]
[1736105486966,0.4748,3635.1,3635.0,0.24765]
[1736105487861,0.72244,3635.1,3635.0,0.24765]
[1736105488855,0.4748,3635.1,3635.0,0.24765]
[1736105489067,0.4748,3635.1,3635.0,1.24735157]
[1736105489260,3.2078,3635.2,3635.1,0.24764]
[1736105489469,3.2078,3635.2,3635.1,1.24784]
[1736105489664,3.2078,3635.2,3635.1,1.75294]
[1736105490268,3.45544,3635.2,3635.1,1.75294]
[1736105492765,3.2078,3635.2,3635.1,1.75294]
[1736105493874,4.45514157,3635.2,3635.1,0.5051]
[1736105494172,4.20750157,3635.2,3634.8,6.39521996]
[1736105494372,4.45514157,3635.2,3635.0,0.24765]
[1736105495566,0.24764,3635.1,3635.0,0.24765]
[1736105495876,0.24764,3635.1,3634.9,0.4954]
[1736105496066,0.99970157,3635.0,3634.8,4.32651839]
[1736105496266,0.24766,3634.9,3634.8,4.32651839]
[1736105497480,2.01850157,3635.0,3634.4,0.24769]
[1736105497670,1.24738157,3634.5,3634.4,0.24769]
[1736105497870,0.24769,3634.4,3634.3,4.80771839]
[1736105498065,0.99970157,3634.5,3634.3,4.80771839]
[1736105498271,0.4952,3634.4,3634.3,4.57420839]
[1736105498876,0.4952,3634.4,3634.3,0.24769]
[1736105501980,0.9704,3634.4,3634.3,0.24769]
[1736105507081,1.21809,3634.4,3634.3,0.24769]
[1736105508371,0.24769,3634.4,3634.3,0.24769]
[1736105508575,0.24769,3634.5,3634.4,0.24769]
[1736105508779,1.24739157,3634.5,3634.4,0.24769]
[1736105509583,4.31940935,3634.7,3634.2,0.99970157]
[1736105509784,5.31911092,3634.7,3634.6,0.24768]
[1736105510878,1.41259979,3634.7,3634.6,0.24768]
[1736105511884,1.66026979,3634.7,3634.6,0.24768]
[1736105513782,5.97967914,3634.7,3634.6,0.24768]
[1736105514283,5.73200914,3634.7,3634.6,0.24768]
[1736105514985,0.99970157,3634.7,3634.6,0.24768]
[1736105516391,4.24344361,3634.7,3634.6,0.24768]
[1736105517086,3.24374204,3634.7,3634.6,0.24768]
[1736105518889,3.24374204,3634.7,3634.6,1.24738157]
[1736105519088,3.24374204,3634.7,3634.6,4.45518157]
[1736105520687,3.24374204,3635.1,3635.0,0.24765]
[1736105521091,4.24344361,3635.1,3635.0,0.24765]
[1736105522394,0.24765,3635.0,3634.6,4.57418839]
[1736105522709,1.24737157,3634.7,3634.6,4.32651839]
[1736105523791,0.24768,3634.6,3634.4,0.24769]
[1736105523984,0.99970157,3634.5,3634.4,0.24769]
[1736105524293,1.49340157,3634.5,3634.4,0.24769]
[1736105524885,5.15003144,3634.5,3634.4,0.24769]
[1736105526097,4.98480563,3634.5,3634.4,0.24769]
[1736105526296,4.73712563,3634.5,3634.4,0.24769]
[1736105527197,3.73742406,3634.5,3634.4,1.24739157]
[1736105527394,3.73742406,3634.5,3634.4,1.72619157]
[1736105527695,3.24372406,3634.5,3634.4,1.72619157]
[1736105529101,0.24768,3634.6,3634.5,0.24768]
[1736105529702,3.73312406,3634.7,3634.5,0.24768]
[1736105529703,3.98079406,3634.7,3634.5,0.24768]
[1736105530202,3.98079406,3634.7,3634.6,0.5013]
[1736105530400,3.73312406,3634.7,3634.5,0.24768]
[1736105530595,1.24738157,3634.6,3634.5,0.24768]
[1736105532602,1.24738157,3634.6,3634.4,0.72649]
[1736105533802,1.24738157,3634.6,3634.4,0.4788]
[1736105534000,1.24738157,3634.6,3634.5,0.24768]
[1736105534406,0.99970157,3634.6,3634.5,0.24768]
[1736105535107,1.24738157,3634.6,3634.5,0.24768]
[1736105535297,0.99970157,3634.6,3634.2,0.5013]
[1736105535501,0.99970157,3634.3,3634.2,0.749]
[1736105536005,1.52510157,3634.3,3634.2,0.749]
[1736105538009,3.24372406,3634.6,3634.2,5.82751996]
[1736105538209,3.24372406,3634.6,3634.5,0.24768]
[1736105538603,3.24372406,3634.6,3634.5,0.73998]
[1736105539006,3.65662489,3634.6,3634.5,0.73998]
[1736105540705,3.65662489,3634.6,3634.5,1.21878]
[1736105541309,3.24372406,3634.6,3634.5,5.54529839]
[1736105543111,3.2078,3634.8,3634.7,0.24767]
[1736105543410,3.2078,3634.8,3634.7,1.31667]
[1736105544217,3.2078,3634.8,3634.7,7.79228838]
[1736105545712,3.49136406,3635.1,3634.7,10.75241838]
[1736105545713,3.24372406,3635.1,3634.7,10.75241838]
[1736105545915,3.24372406,3635.1,3635.0,2.46228975]
[1736105547513,6.45152406,3635.7,3635.6,0.24761]
[1736105548910,3.2078,3635.7,3635.6,0.24761]
[1736105549122,3.45541,3635.7,3635.5,0.24762]
[1736105549421,3.2078,3635.7,3635.5,0.24762]
[1736105549721,3.45541,3635.7,3635.5,0.24762]
[1736105551620,3.45541,3635.7,3635.1,2.5778]
[1736105551621,0.24761,3635.6,3635.1,2.5778]
[1736105551921,0.9817,3635.5,3635.4,0.24762]
[1736105552511,3.24372406,3635.7,3635.6,0.24761]
[1736105553922,0.4911,3635.8,3635.3,2.21463975]
[1736105554222,0.4911,3635.8,3635.7,0.2476]
[1736105563423,0.4911,3635.8,3635.4,0.24762]
[1736105563726,3.45541,3635.6,3635.2,1.068]
[1736105563929,0.486,3635.5,3635.2,1.068]
[1736105564122,0.5129,3635.4,3635.3,0.24763]
[1736105564322,0.9971,3635.4,3635.3,0.24763]
[1736105565330,0.24763,3635.3,3635.1,0.24764]
[1736105565523,3.2078,3635.2,3635.1,0.24764]
[1736105569632,1.21553,3635.4,3635.2,0.24763]
[1736105571335,1.21553,3635.4,3635.0,0.5045]
[1736105571526,1.21553,3635.4,3635.3,0.24763]
[1736105574633,0.9679,3635.4,3635.3,0.24763]
[1736105574825,3.12579035,3635.4,3635.3,0.24763]
[1736105575021,3.37341035,3635.4,3635.3,0.24763]
[1736105575227,3.12579035,3635.4,3635.3,0.24763]
[1736105575435,3.37341035,3635.4,3635.3,0.24763]
[1736105576036,3.12579035,3635.4,3635.3,0.24763]
[1736105576235,2.64209035,3635.4,3635.3,0.24763]
[1736105576437,2.15789035,3635.5,3635.4,0.24762]
[1736105577532,3.7256,3635.7,3635.0,11.2393749]
[1736105578038,3.7256,3635.7,3635.6,0.24761]
[1736105578238,0.5178,3635.7,3635.6,0.24761]
[1736105578538,0.7654,3635.7,3635.6,0.24761]
[1736105578733,2.67569035,3635.7,3635.6,0.24761]
[1736105580134,0.5178,3635.7,3635.6,0.24761]
[1736105588242,4.16909514,3635.7,3635.6,0.24761]
[1736105589040,3.75632111,3635.7,3635.6,0.24761]
[1736105589444,3.75632111,3635.7,3635.6,1.24676669]
[1736105589948,4.16910147,3635.7,3635.6,1.24676669]
[1736105591047,3.65130147,3635.7,3635.6,1.24676669]
[1736105591354,3.23852111,3635.7,3635.6,1.24676669]
[1736105595655,3.23852111,3635.8,3635.7,0.2476]
[1736105598257,3.65127886,3635.8,3635.7,0.2476]
[1736105600257,3.23852111,3635.8,3635.7,0.2476]
[1736105604067,3.23852111,3635.8,3635.6,2.06715669]
[1736105604068,2.16265232,3636.0,3635.9,0.24759]
[1736105604267,2.16265232,3636.0,3635.9,1.24674669]
[1736105605358,2.16265232,3636.1,3635.9,0.99915669]
[1736105605668,2.68365232,3636.1,3636.0,0.24758]
[1736105606369,4.17225502,3636.1,3636.0,0.24758]
[1736105606557,4.17225502,3636.1,3636.0,1.23828]
[1736105608166,3.75952111,3636.1,3636.0,1.23828]
[1736105610068,0.521,3636.1,3636.0,1.23828]
[1736105611258,3.75952111,3636.1,3636.0,1.23828]
[1736105611787,3.23852111,3636.1,3636.0,1.23828]
[1736105612863,2.161256,3636.4,3636.1,0.61894]
[1736105613069,2.161256,3636.4,3636.3,1.24671669]
[1736105613273,2.161256,3636.4,3636.3,2.31471669]
[1736105614769,3.77242111,3636.6,3636.3,2.31471669]
[1736105614770,2.695156,3636.6,3636.3,2.06715669]
[1736105614970,2.695156,3636.6,3636.5,0.24755]
[1736105615875,2.695156,3636.6,3636.5,1.24670669]
[1736105617372,0.5339,3636.6,3636.5,1.24670669]
[1736105617771,0.5339,3636.6,3636.5,0.24755]
[1736105618771,1.53305669,3636.6,3636.5,0.24755]
[1736105618967,1.53305669,3636.6,3636.3,2.06715669]
[1736105619174,0.24755,3636.5,3636.4,0.24755]
[1736105619869,2.408806,3636.5,3636.4,0.24755]
[1736105620571,2.161256,3636.5,3636.4,0.24755]
[1736105621776,3.69431269,3636.6,3636.3,2.06715669]
[1736105621976,3.69431269,3636.6,3636.5,0.24755]
[1736105623178,1.53305669,3636.6,3636.5,0.24755]
[1736105624774,0.5339,3636.6,3636.5,0.24755]
[1736105625477,2.69393309,3636.6,3636.5,0.24755]
[1736105627778,2.69393309,3636.6,3636.5,1.24670669]
[1736105629484,0.5339,3636.6,3636.5,1.24670669]
[1736105635085,0.5339,3636.6,3636.5,4.45450669]
[1736105636184,0.5339,3636.6,3636.5,4.94220669]
[1736105636780,0.5339,3636.6,3636.5,5.40310669]
[1736105641384,0.5339,3636.6,3636.5,2.19530669]
[1736105650991,0.5339,3636.6,3636.5,1.24670669]
[1736105651987,2.69393309,3636.6,3636.5,1.24670669]
[1736105656801,1.53305669,3636.6,3636.5,4.55920148]
[1736105658199,1.53305669,3636.6,3636.5,0.24755]
[1736105659596,1.9457423,3636.6,3636.5,0.24755]
[1736105660794,6.27325912,3636.6,3636.5,0.24755]
[1736105669498,6.52079912,3636.6,3636.4,0.24755]
[1736105669701,4.20695669,3636.5,3636.2,4.31165148]
[1736105669894,1.24671669,3636.3,3636.2,4.31165148]
[1736105670405,1.71271669,3636.3,3636.2,4.31165148]
[1736105671007,6.70761773,3636.3,3636.1,0.24757]
[1736105671308,0.71137,3636.2,3636.1,0.24757]
[1736105671601,0.71137,3636.2,3635.7,1.50435669]
[1736105671602,3.6716,3636.2,3635.7,1.50435669]
[1736105671814,0.99915669,3635.8,3635.7,0.2476]
[1736105672605,0.2476,3635.7,3635.6,4.31165148]
[1736105672801,4.8407,3635.7,3635.6,4.31165148]
[1736105673106,4.8407,3635.7,3635.6,2.42565148]
[1736105673807,9.3307908,3635.7,3635.2,0.24763]
[1736105674108,4.20695669,3635.3,3635.2,0.24763]
[1736105674312,4.20695669,3635.3,3634.9,6.45725273]
[1736105674501,0.99915669,3635.0,3634.9,6.70490273]
[1736105674902,1.96495669,3635.0,3634.9,6.70490273]
[1736105675206,1.96495669,3635.0,3634.9,0.24765]
[1736105678009,1.96495669,3635.0,3634.7,1.46465669]
[1736105678204,1.96495669,3635.0,3634.9,0.24766]
[1736105679908,1.96495669,3635.0,3634.7,1.46465669]
[1736105680508,1.96495669,3635.0,3634.7,0.71317]
[1736105680509,0.99915669,3634.8,3634.7,0.71317]
[1736105681010,1.96495669,3635.0,3634.9,0.24766]
[1736105685510,0.99915669,3635.0,3634.9,0.24766]
[1736105689915,3.2078,3635.2,3635.0,0.24764]
[1736105690113,0.99915669,3635.1,3635.0,0.24764]
[1736105691510,1.24679669,3635.1,3635.0,0.24764]
[1736105691715,0.99915669,3635.1,3635.0,0.24764]
[1736105691916,1.24679669,3635.1,3635.0,0.24764]
[1736105692114,0.99915669,3635.1,3635.0,0.24764]
[1736105694119,1.48555669,3635.1,3635.0,0.24764]
[1736105694317,4.69335669,3635.1,3635.0,0.24764]
[1736105698916,2.15911443,3635.5,3635.4,0.24762]
[1736105699225,2.15911443,3635.5,3635.4,1.24677669]
[1736105699612,2.15911443,3635.7,3635.4,0.99915669]
[1736105699815,2.15911443,3635.7,3635.6,0.24761]
[1736105700319,2.15911443,3635.7,3635.6,1.24676669]
[1736105700714,2.15911443,3635.7,3635.6,0.24761]
[1736105700916,4.20695669,3635.9,3635.8,0.2476]
[1736105701209,4.20695669,3635.9,3635.4,0.24762]
[1736105701412,4.20695669,3635.5,3635.4,0.24762]
[1736105702519,4.20695669,3635.9,3635.3,0.99915669]
[1736105702717,4.20695669,3635.9,3635.8,0.2476]
[1736105703313,5.36691443,3635.9,3635.8,0.2476]
[1736105703619,5.36691443,3635.9,3635.8,0.7198]
[1736105704716,3.2078,3635.9,3635.8,1.71895669]
[1736105706721,3.6785,3636.3,3636.2,0.24757]
[1736105708028,3.6785,3636.3,3635.8,1.47135669]
[1736105708223,0.99915669,3636.1,3636.0,0.24758]
[1736105709122,0.99915669,3636.1,3635.8,1.47135669]
[1736105709123,0.99915669,3636.1,3635.8,0.4722]
[1736105709333,0.99915669,3635.9,3635.8,0.71979]
[1736105709725,3.6785,3636.3,3635.8,1.47135669]
[1736105710028,0.99915669,3636.2,3635.8,1.47135669]
[1736105710322,4.20695669,3635.9,3635.5,0.24761]
[1736105710529,0.99915669,3635.6,3635.5,0.24761]
[1736105711725,0.24762,3635.5,3635.3,0.4729]
[1736105712022,0.24762,3635.5,3635.3,0.72053]
[1736105712023,4.20695669,3635.4,3635.3,0.72053]
[1736105712618,4.20695669,3635.4,3635.3,0.4729]
[1736105713024,0.9511,3635.8,3635.3,0.4729]
[1736105713230,2.15911443,3635.9,3635.8,0.2476]
[1736105713431,2.15911443,3635.9,3635.7,0.99915669]
[1736105713727,2.15911443,3635.8,3635.7,0.2476]
[1736105714030,2.15911443,3635.8,3635.7,1.24675669]
[1736105714925,3.15827112,3636.1,3635.7,0.99915669]
[1736105715230,3.15827112,3636.1,3635.9,0.24758]
[1736105715632,3.40585112,3636.1,3635.9,0.24758]
[1736105715927,3.15827112,3636.1,3635.8,1.4545]
[1736105716128,4.20695669,3635.9,3635.2,0.4987]
[1736105716328,0.99915669,3635.3,3635.2,0.999]
[1736105716833,1.45415669,3635.3,3635.2,0.999]
[1736105717031,0.455,3635.3,3635.2,0.999]
[1736105717231,0.455,3635.3,3635.2,0.5003]
[1736105717929,0.70263,3635.3,3635.2,0.5003]
[1736105718132,0.24764,3635.1,3634.9,0.24765]
[1736105718333,0.24765,3635.0,3634.7,3.6853]
[1736105718536,0.24765,3635.0,3634.9,0.24766]
[1736105718730,3.2078,3635.0,3634.7,0.4775]
[1736105718921,3.2078,3635.0,3634.7,0.72517]
[1736105718922,0.24766,3634.9,3634.7,0.72517]
[1736105719231,0.4674,3634.9,3634.7,0.4775]
[1736105719433,0.4674,3634.9,3634.8,0.24766]
[1736105720128,3.2078,3635.0,3634.9,0.24766]
[1736105720429,5.36691443,3635.0,3634.9,0.24766]
[1736105720827,0.24766,3634.9,3634.7,0.72517]
[1736105721025,5.61456443,3635.0,3634.7,0.72517]
[1736105721226,0.4954,3634.8,3634.7,0.72517]
[1736105723134,0.4954,3634.8,3634.7,0.4775]
[1736105723321,0.4954,3634.8,3634.7,0.72517]
[1736105725524,5.36691443,3635.0,3634.7,2.69215018]
[1736105725835,5.36691443,3635.0,3634.9,0.24766]
[1736105726231,3.2078,3635.0,3634.9,0.24766]
[1736105726631,2.15911443,3635.1,3634.7,2.69215018]
[1736105726835,2.15911443,3635.1,3635.0,0.24765]
[1736105727829,2.15911443,3635.3,3635.2,0.24764]
[1736105729326,3.2078,3635.4,3634.7,2.21465018]
[1736105729327,3.2078,3635.4,3635.3,0.24763]
[1736105729735,3.2078,3635.4,3634.7,2.21465018]
[1736105730136,5.36691443,3635.4,3635.3,0.24763]
[1736105730933,0.24765,3635.1,3634.8,0.24766]
[1736105731129,0.9711,3635.3,3634.6,6.45725273]
[1736105731335,0.24767,3634.8,3634.6,6.70492273]
[1736105731937,0.71797,3634.7,3634.6,6.70492273]
[1736105732836,0.4703,3634.7,3634.5,0.4757]
[1736105733043,0.4703,3634.7,3634.2,4.2958]
[1736105733338,0.24769,3634.5,3634.3,0.24769]
[1736105734040,0.24768,3634.6,3634.4,0.24769]
[1736105734244,2.15911443,3634.6,3634.5,0.24768]
[1736105735543,0.4703,3634.7,3634.2,4.2958]
[1736105735742,0.4703,3634.7,3634.6,0.24768]
[1736105736140,0.71797,3634.7,3634.5,0.24768]
[1736105737535,0.4703,3634.7,3634.6,0.24768]
[1736105739440,0.4703,3634.7,3634.2,4.2958]
[1736105739647,0.71797,3634.7,3634.5,0.24768]
[1736105739947,2.15911443,3634.9,3634.8,0.24766]
[1736105740137,2.15911443,3634.9,3634.8,2.46231018]
[1736105741245,1.40601443,3634.9,3634.8,2.46231018]
[1736105741745,3.24034052,3635.0,3634.8,2.21465018]
[1736105742047,3.24034052,3635.0,3634.9,1.33566]
[1736105742249,4.32500519,3635.2,3634.9,1.088]
[1736105742451,3.48794052,3635.8,3635.5,0.24761]
[1736105743544,3.24034052,3635.8,3635.6,0.24761]
[1736105743744,3.24034052,3635.9,3635.6,0.24761]
[1736105744144,3.24034052,3635.9,3635.2,0.4864]
[1736105744345,3.24034052,3635.9,3635.4,2.21465018]
[1736105744649,3.24034052,3635.9,3635.8,0.2476]